bitfinex/quotes_BTCUSD_20240826
["timestamp","ask_amount","ask_price","bid_price","bid_amount"]
[1724677947100,0.15634614,63877.0,63876.0,0.188377]
[1724677947437,0.15634614,63877.0,63876.0,0.191377]
[1724677947780,0.15634614,63877.0,63876.0,0.034824]
[1724677947989,0.16026067,63877.0,63876.0,0.034824]
[1724677948409,0.16026067,63877.0,63876.0,0.191377]
[1724677948581,0.15634614,63877.0,63876.0,0.034824]
[1724677948784,0.16026067,63877.0,63876.0,0.034824]
[1724677949163,0.16026067,63877.0,63876.0,0.191377]
[1724677949368,0.15634614,63877.0,63876.0,0.034824]
[1724677949777,0.16026062,63877.0,63876.0,0.034824]
[1724677950462,0.16026062,63877.0,63876.0,0.191377]
[1724677950663,0.15634614,63877.0,63876.0,0.191377]
[1724677950906,0.15634614,63877.0,63876.0,0.188377]
[1724677951120,0.15634614,63877.0,63876.0,0.191377]
[1724677951326,0.15634614,63877.0,63876.0,0.034824]
[1724677951561,0.16026061,63877.0,63876.0,0.034824]
[1724677952137,0.16026061,63877.0,63876.0,0.188377]
[1724677952380,0.15634614,63877.0,63876.0,0.034824]
[1724677953159,0.15634614,63877.0,63876.0,0.188377]
[1724677953358,0.15634614,63877.0,63876.0,0.191377]
[1724677954752,0.15634614,63877.0,63876.0,0.188377]
[1724677955157,0.15634614,63877.0,63876.0,0.191377]
[1724677955561,0.15634614,63877.0,63876.0,0.188377]
[1724677955768,0.15634614,63877.0,63876.0,0.191377]
[1724677956381,0.15634614,63877.0,63876.0,0.188377]
[1724677956588,0.15634614,63877.0,63876.0,0.191377]
[1724677957025,0.15634614,63877.0,63876.0,0.504483]
[1724677957662,0.15634614,63877.0,63876.0,0.501483]
[1724677957931,0.01091239,63877.0,63876.0,1.61406868]
[1724677958461,0.1368,63881.0,63876.0,1.61406868]
[1724677958462,0.0753,63881.0,63880.0,1.095804]
[1724677958641,0.0753,63881.0,63880.0,1.13589367]
[1724677958861,0.0753,63881.0,63880.0,1.29207168]
[1724677959094,0.0753,63881.0,63880.0,1.29507168]
[1724677959632,0.0753,63881.0,63880.0,1.30007168]
[1724677960240,0.08113375,63885.0,63884.0,1.095734]
[1724677960447,0.08113375,63885.0,63884.0,1.29200168]
[1724677961306,0.08113375,63885.0,63884.0,0.82575667]
[1724677962051,0.08113375,63885.0,63884.0,0.52668967]
[1724677962292,0.08113375,63885.0,63884.0,0.51268967]
[1724677962465,0.08113375,63885.0,63884.0,0.82275667]
[1724677962673,0.08113375,63885.0,63884.0,0.85075667]
[1724677962874,0.08113375,63885.0,63884.0,0.83975667]
[1724677963455,0.08113375,63885.0,63884.0,0.85175667]
[1724677963864,0.08113375,63885.0,63884.0,0.84875703]
[1724677964043,0.0807,63885.0,63884.0,0.84875703]
[1724677964239,0.0807,63885.0,63884.0,1.16182403]
[1724677964443,0.08113375,63885.0,63884.0,1.31800204]
[1724677964918,0.08113375,63885.0,63884.0,1.30400204]
[1724677965130,0.00043375,63886.0,63884.0,0.83440204]
[1724677965341,0.00043375,63886.0,63885.0,0.97892304]
[1724677965546,0.00043375,63886.0,63885.0,1.29198504]
[1724677965723,0.00043375,63886.0,63885.0,1.36108504]
[1724677966772,0.00043375,63886.0,63885.0,1.37508504]
[1724677966887,0.00043375,63886.0,63885.0,1.38908504]
[1724677967096,0.00043375,63886.0,63885.0,1.38908094]
[1724677967293,0.08,63895.0,63887.0,0.313052]
[1724677967294,0.00043375,63893.0,63887.0,0.313052]
[1724677967500,0.00043375,63893.0,63892.0,0.156514]
[1724677967710,0.00043375,63893.0,63892.0,0.82265593]
[1724677968740,0.00043375,63893.0,63892.0,1.14968393]
[1724677970333,0.00043375,63893.0,63892.0,1.14968175]
[1724677970501,0.00043375,63893.0,63892.0,1.16068175]
[1724677971397,0.0009064,63896.0,63895.0,1.408558]
[1724677971596,0.0009064,63896.0,63895.0,1.60481976]
[1724677972369,0.0009064,63896.0,63895.0,1.6048134]
[1724677972499,0.0009064,63896.0,63895.0,1.6188134]
[1724677973519,0.0009064,63896.0,63895.0,1.6298134]
[1724677974732,0.0791064,63896.0,63895.0,1.6298134]
[1724677974972,0.0009064,63896.0,63895.0,1.6298134]
[1724677976071,0.0009064,63896.0,63895.0,1.6954134]
[1724677976689,0.0009064,63896.0,63895.0,1.69541035]
[1724677977822,0.0009064,63896.0,63895.0,1.62981035]
[1724677980035,0.0834064,63896.0,63895.0,1.31679735]
[1724677981303,0.1441064,63896.0,63895.0,1.31679735]
[1724677982143,0.1441064,63896.0,63895.0,1.31680337]
[1724677982355,0.14454015,63896.0,63895.0,0.517519]
[1724677982555,0.14845317,63896.0,63895.0,0.53460082]
[1724677982766,0.15538198,63896.0,63895.0,0.53460082]
[1724677984026,0.15538198,63896.0,63895.0,0.22158782]
[1724677984236,0.15538198,63896.0,63895.0,0.06508182]
[1724677985337,0.31188598,63896.0,63895.0,0.06508182]
[1724677985486,0.31188598,63896.0,63895.0,0.048]
[1724677985694,0.62489398,63896.0,63895.0,0.06508594]
[1724677986898,0.15538198,63896.0,63895.0,0.05108594]
[1724677987099,0.15538198,63896.0,63895.0,0.83361794]
[1724677987325,0.15538198,63896.0,63895.0,0.20759194]
[1724677987748,0.15538198,63896.0,63895.0,0.19659194]
[1724677987975,0.15538198,63896.0,63895.0,0.20059194]
[1724677988313,0.15538198,63896.0,63895.0,0.52160494]
[1724677988495,0.15538198,63896.0,63895.0,0.191506]
[1724677988711,0.15538198,63896.0,63895.0,0.05208498]
[1724677990359,0.31579934,63896.0,63895.0,0.05208498]
[1724677990863,0.15538198,63896.0,63895.0,0.52160398]
[1724677991072,0.15538198,63896.0,63895.0,0.83461698]
[1724677991368,0.14454015,63896.0,63895.0,0.52160398]
[1724677991566,0.14454015,63896.0,63895.0,0.817532]
[1724677991772,0.15536663,63896.0,63895.0,0.5216044]
[1724677992304,0.15536663,63896.0,63895.0,0.8346174]
[1724677992505,0.15536663,63896.0,63895.0,0.5216044]
[1724677992923,0.15536663,63896.0,63895.0,0.8346174]
[1724677993127,0.15536663,63896.0,63895.0,0.5216044]
[1724677993319,0.14454015,63896.0,63895.0,0.8346174]
[1724677993532,0.0009064,63896.0,63895.0,0.99079541]
[1724677994087,0.0009064,63896.0,63895.0,0.8346174]
[1724677994088,0.14054015,63896.0,63895.0,0.8346174]
[1724677994709,0.07674015,63896.0,63895.0,0.8346174]
[1724677995097,0.0763064,63896.0,63895.0,0.8346174]
[1724677995652,0.0009064,63896.0,63895.0,0.99079541]
[1724677996248,0.0009064,63896.0,63895.0,1.30380841]
[1724677998565,0.0009064,63896.0,63895.0,1.30380328]
[1724677998986,0.0009064,63896.0,63895.0,1.31555351]
[1724677999393,0.08061921,63896.0,63895.0,1.31555351]
[1724678000205,0.0767064,63896.0,63895.0,1.31555351]
[1724678000406,0.0009064,63896.0,63895.0,1.31555351]
[1724678003912,0.0009064,63896.0,63895.0,1.33024168]
[1724678004114,0.0673064,63896.0,63895.0,1.33024168]
[1724678004313,0.14744015,63896.0,63895.0,0.86105067]
[1724678004839,0.14744015,63896.0,63895.0,0.84930044]
[1724678005084,0.14744015,63896.0,63895.0,0.86105358]
[1724678005545,0.14744015,63896.0,63895.0,0.86105624]
[1724678005921,0.14744015,63896.0,63895.0,0.86106055]
[1724678007133,0.14744015,63896.0,63895.0,0.84930751]
[1724678007298,0.14744015,63896.0,63895.0,0.86106082]
[1724678008162,0.08104015,63896.0,63895.0,0.86106082]
[1724678009138,0.0806064,63896.0,63895.0,1.33025183]
[1724678010495,0.08026582,63896.0,63895.0,1.33025183]
[1724678010741,0.08069957,63896.0,63895.0,1.01723883]
[1724678011175,0.08069957,63896.0,63895.0,0.86106082]
[1724678012127,0.08069957,63896.0,63895.0,0.84930836]
[1724678012333,0.08069957,63896.0,63895.0,0.86106172]
[1724678014810,0.09151842,63896.0,63895.0,0.86106172]
[1724678015583,0.31833541,63896.0,63895.0,0.07852972]
[1724678015783,0.31833541,63896.0,63895.0,0.05208466]
[1724678016117,0.63134341,63896.0,63895.0,0.05208466]
[1724678016326,0.63134341,63896.0,63895.0,0.02908466]
[1724678016549,0.94435141,63896.0,63895.0,0.02908466]
[1724678016721,1.25735941,63896.0,63895.0,0.02908466]
[1724678016922,1.25735941,63896.0,63895.0,0.012]
[1724678017123,1.51353742,63896.0,63895.0,0.012]
[1724678017647,1.51353742,63896.0,63895.0,0.008]
[1724678018003,1.51353742,63896.0,63895.0,0.01]
[1724678019330,0.293936,63883.0,63882.0,0.003]
[1724678019536,0.61135578,63883.0,63882.0,0.026]
[1724678019715,0.62212614,63883.0,63882.0,0.026]
[1724678020130,0.93519814,63883.0,63882.0,0.026]
[1724678020599,0.62212614,63883.0,63882.0,0.038]
[1724678020798,0.15251814,63883.0,63882.0,0.038]
[1724678021001,0.30905414,63883.0,63882.0,0.038]
[1724678022076,0.15251814,63883.0,63882.0,0.038]
[1724678022277,0.30514011,63883.0,63882.0,0.038]
[1724678022517,0.30905428,63883.0,63882.0,0.052]
[1724678022719,0.30514011,63883.0,63882.0,0.052]
[1724678023348,0.15251821,63883.0,63882.0,0.049]
[1724678023556,0.14841569,63883.0,63882.0,0.052]
[1724678025000,0.14841569,63883.0,63882.0,0.052825]
[1724678025211,0.14841569,63883.0,63882.0,0.049825]
[1724678025422,0.14841569,63883.0,63882.0,0.052825]
[1724678026277,0.30495169,63883.0,63882.0,0.052825]
[1724678026563,0.14841569,63883.0,63882.0,0.052825]
[1724678030582,0.14841569,63883.0,63882.0,0.049825]
[1724678030784,0.14841569,63883.0,63882.0,0.052825]
[1724678031398,0.14841569,63883.0,63882.0,0.832517]
[1724678031399,0.08641569,63883.0,63882.0,0.832517]
[1724678031603,0.08641569,63883.0,63882.0,0.84960852]
[1724678032006,0.08641569,63883.0,63882.0,0.849608]
[1724678033443,0.07564533,63883.0,63882.0,0.849608]
[1724678033642,0.08634957,63883.0,63882.0,0.849608]
[1724678034279,0.08634957,63883.0,63882.0,0.852608]
[1724678034876,0.08634957,63883.0,63882.0,0.069916]
[1724678035145,0.31239953,63883.0,63882.0,0.046916]
[1724678035348,0.62547153,63883.0,63882.0,0.029825]
[1724678035755,0.93854353,63883.0,63882.0,0.029825]
[1724678036361,1.40387958,63883.0,63882.0,0.029825]
[1724678037146,1.40478709,63883.0,63882.0,0.029825]
[1724678037582,1.40478709,63883.0,63882.0,0.026825]
[1724678037992,1.40478709,63883.0,63882.0,0.029825]
[1724678041356,1.40578709,63883.0,63882.0,0.029825]
[1724678041499,1.40678709,63883.0,63882.0,0.029825]
[1724678043206,1.40478709,63883.0,63882.0,0.029825]
[1724678043377,0.62246508,63883.0,63882.0,0.029825]
[1724678044376,0.15285708,63883.0,63882.0,0.029825]
[1724678044581,0.08725708,63883.0,63882.0,0.206363]
[1724678044783,0.08725708,63883.0,63882.0,0.832517]
[1724678044991,0.08725708,63883.0,63882.0,0.209363]
[1724678045218,0.07655284,63883.0,63882.0,0.052825]
[1724678045447,0.08720102,63883.0,63882.0,0.209363]
[1724678045661,0.08720102,63883.0,63882.0,0.52244]
[1724678046239,0.08720102,63883.0,63882.0,0.209363]
[1724678047541,0.08720102,63883.0,63882.0,0.206363]
[1724678047745,0.08720102,63883.0,63882.0,0.51944]
[1724678048300,0.08720102,63883.0,63882.0,0.52244]
[1724678048504,0.08720102,63883.0,63882.0,0.206363]
[1724678048702,0.08720102,63883.0,63882.0,0.052825]
[1724678049127,0.08720102,63883.0,63882.0,0.206363]
[1724678049647,0.08720102,63883.0,63882.0,0.209363]
[1724678049789,0.08720102,63883.0,63882.0,0.206363]
[1724678050415,0.08720102,63883.0,63882.0,0.209363]
[1724678051595,0.08720102,63883.0,63882.0,0.206363]
[1724678051881,0.08720102,63883.0,63882.0,0.209363]
[1724678053350,0.08720102,63883.0,63882.0,0.206363]
[1724678053579,0.08720102,63883.0,63882.0,0.209363]
[1724678054012,0.56072303,63883.0,63882.0,0.029825]
[1724678054216,0.93799503,63883.0,63882.0,0.029825]
[1724678054419,1.25106703,63883.0,63882.0,0.029825]
[1724678055031,0.93799503,63883.0,63882.0,0.029825]
[1724678055237,0.01198944,63883.0,63882.0,0.029825]
[1724678055761,0.01198944,63883.0,63882.0,0.052825]
[1724678056571,0.01198944,63883.0,63882.0,0.209363]
[1724678056835,0.01198944,63883.0,63882.0,0.049825]
[1724678057029,0.01198944,63883.0,63882.0,0.052825]
[1724678058399,0.01198944,63883.0,63882.0,0.51944]
[1724678058984,0.01198944,63883.0,63882.0,0.209363]
[1724678059185,0.01198944,63883.0,63882.0,0.967017]
[1724678059342,0.01198944,63883.0,63882.0,1.280094]
[1724678059552,0.00134126,63883.0,63882.0,1.280094]
[1724678059756,0.00134126,63883.0,63882.0,1.210794]
[1724678062610,0.00134126,63883.0,63882.0,1.204194]
[1724678065762,0.00134126,63883.0,63882.0,0.825917]
[1724678066050,0.00134126,63883.0,63882.0,0.043225]
[1724678066051,0.08244126,63883.0,63882.0,0.043225]
[1724678066293,0.08244126,63883.0,63882.0,0.046225]
[1724678066497,0.09723488,63883.0,63882.0,0.202763]
[1724678066625,0.09723488,63883.0,63882.0,0.199763]
[1724678066826,0.16183488,63883.0,63882.0,0.202763]
[1724678067496,0.16183488,63883.0,63882.0,0.199763]
[1724678067648,0.16183488,63883.0,63882.0,0.202763]
[1724678068196,0.16183488,63883.0,63882.0,0.046225]
[1724678069619,1.10069289,63883.0,63882.0,0.023225]
[1724678069775,1.41376489,63883.0,63882.0,0.023225]
[1724678072300,0.94451488,63883.0,63882.0,0.023225]
[1724678072533,0.94451488,63883.0,63882.0,0.020225]
[1724678072791,0.94451488,63883.0,63882.0,0.023225]
[1724678073041,0.31837088,63883.0,63882.0,0.020225]
[1724678073304,0.31837088,63883.0,63882.0,0.023225]
[1724678073552,0.63144288,63883.0,63882.0,0.023225]
[1724678074808,1.41376489,63883.0,63882.0,0.023225]
[1724678075054,0.94451488,63883.0,63882.0,0.023225]
[1724678075545,0.94060097,63883.0,63882.0,0.023225]
[1724678075750,0.62752897,63883.0,63882.0,0.023225]
[1724678076174,0.24985697,63883.0,63882.0,0.023225]
[1724678076374,0.24985697,63883.0,63882.0,0.046225]
[1724678076588,0.24985697,63883.0,63882.0,0.043225]
[1724678077244,0.56292897,63883.0,63882.0,0.044225]
[1724678077449,0.56274057,63883.0,63882.0,0.046225]
[1724678077655,0.24966857,63883.0,63882.0,0.046225]
[1724678079847,0.09313257,63883.0,63882.0,0.046225]
[1724678081538,0.87972655,63883.0,63882.0,0.023225]
[1724678081733,0.94252655,63883.0,63882.0,0.023225]
[1724678082996,0.94252655,63883.0,63882.0,0.046225]
[1724678083663,0.62554057,63883.0,63882.0,0.046225]
[1724678084281,0.62554057,63883.0,63882.0,0.043225]
[1724678084815,0.62554057,63883.0,63882.0,0.046225]
[1724678085014,0.62554057,63883.0,63882.0,0.043225]
[1724678085219,0.62554057,63883.0,63882.0,0.046225]
[1724678085788,0.62554057,63883.0,63882.0,0.043225]
[1724678085967,0.62554057,63883.0,63882.0,0.046225]
[1724678088728,0.62554057,63883.0,63882.0,0.043225]
[1724678089070,0.62554057,63883.0,63882.0,0.046225]
[1724678089398,0.62554057,63883.0,63882.0,0.043225]
[1724678089609,0.62554057,63883.0,63882.0,0.046225]
[1724678092223,0.62554057,63883.0,63882.0,0.043225]
[1724678092500,0.62554057,63883.0,63882.0,0.046225]
[1724678092619,0.93861257,63883.0,63882.0,0.046225]
[1724678093232,1.40786258,63883.0,63882.0,0.023225]
[1724678093651,1.40886258,63883.0,63882.0,0.023225]
[1724678094530,1.40786258,63883.0,63882.0,0.023225]
[1724678094782,1.40786258,63883.0,63882.0,0.017825]
[1724678095407,1.40786258,63883.0,63882.0,0.003825]
[1724678095610,1.40786258,63883.0,63882.0,0.005825]
[1724678096168,1.40986258,63883.0,63882.0,0.005825]
[1724678099793,1.40886258,63883.0,63882.0,0.005825]
[1724678100111,1.40986258,63883.0,63882.0,0.005825]
[1724678101857,1.40886258,63883.0,63882.0,0.005825]
[1724678102659,1.25268457,63883.0,63882.0,0.005825]
[1724678103289,1.34654464,63883.0,63882.0,0.005825]
[1724678104559,1.25268457,63883.0,63882.0,0.005825]
[1724678104711,1.34654464,63883.0,63882.0,0.005825]
[1724678105922,1.25268457,63883.0,63882.0,0.005825]
[1724678106341,1.40886258,63883.0,63882.0,0.005825]
[1724678106784,1.50272265,63883.0,63882.0,0.005825]
[1724678108528,1.81779465,63883.0,63882.0,0.002825]
[1724678109563,1.72393458,63883.0,63882.0,0.002825]
[1724678110575,1.09579058,63883.0,63882.0,0.002825]
[1724678110777,0.08341292,63883.0,63882.0,0.069325]
[1724678110980,0.05995402,63883.0,63882.0,0.092325]
[1724678111185,0.05995402,63883.0,63882.0,0.10941507]
[1724678111186,0.48264057,63883.0,63882.0,0.10941507]
[1724678111588,0.01303257,63883.0,63882.0,0.26595307]
[1724678111956,0.01303257,63883.0,63882.0,0.10941507]
[1724678112626,0.16956857,63883.0,63882.0,0.10941507]
[1724678112829,0.16956857,63883.0,63882.0,0.04291507]
[1724678113031,0.01303257,63883.0,63882.0,0.04291507]
[1724678113631,0.16956857,63883.0,63882.0,0.04291507]
[1724678114431,0.55974057,63883.0,63882.0,0.04291507]
[1724678114837,0.24666857,63883.0,63882.0,0.04291507]
[1724678115044,0.55974057,63883.0,63882.0,0.04291507]
[1724678115452,0.24666857,63883.0,63882.0,0.04291507]
[1724678116102,0.55974057,63883.0,63882.0,0.04291507]
[1724678117243,0.55974057,63883.0,63882.0,0.04291481]
[1724678118712,0.87281257,63883.0,63882.0,0.01991481]
[1724678118953,1.18588457,63883.0,63882.0,0.002825]
[1724678119154,1.34206258,63883.0,63882.0,0.002825]
[1724678119357,2.09132231,63883.0,63882.0,0.002825]
[1724678119577,2.18519666,63883.0,63882.0,0.002825]
[1724678119780,2.09132231,63883.0,63882.0,0.002825]
[1724678119980,2.20866525,63883.0,63882.0,0.002825]
[1724678120184,2.20766525,63883.0,63882.0,0.002825]
[1724678120317,2.20866525,63883.0,63882.0,0.002825]
[1724678120517,1.62320552,63883.0,63882.0,0.002825]
[1724678120924,1.62420552,63883.0,63882.0,0.002825]
[1724678122177,1.50686258,63883.0,63882.0,0.002825]
[1724678123403,1.50586258,63883.0,63882.0,0.002825]
[1724678124265,1.50686258,63883.0,63882.0,0.002825]
[1724678124409,1.59971473,63883.0,63882.0,0.002825]
[1724678124609,1.60071473,63883.0,63882.0,0.002825]
[1724678124811,1.50586258,63883.0,63882.0,0.002825]
[1724678126154,1.59971473,63883.0,63882.0,0.002825]
[1724678127459,0.65974057,63883.0,63882.0,0.002825]
[1724678127680,0.11303257,63883.0,63882.0,0.002825]
[1724678128363,0.26956857,63883.0,63882.0,0.002825]
[1724678129002,0.11303257,63883.0,63882.0,0.002825]
[1724678129151,0.01303257,63883.0,63882.0,0.002825]
[1724678129555,0.16956857,63883.0,63882.0,0.002825]
[1724678129759,0.26956857,63883.0,63882.0,0.002825]
[1724678132508,0.58264057,63883.0,63882.0,0.002825]
[1724678132771,0.26956857,63883.0,63882.0,0.002825]
[1724678133391,0.11303257,63883.0,63882.0,0.002825]
[1724678133785,0.01303257,63883.0,63882.0,0.002825]
[1724678134009,0.01303257,63883.0,63882.0,0.921017]
[1724678134208,0.01303257,63883.0,63882.0,1.257094]
[1724678134396,0.00171911,63883.0,63882.0,1.257094]
[1724678134596,0.00171911,63883.0,63882.0,1.41327201]
[1724678135576,0.00071911,63883.0,63882.0,1.72634901]
[1724678135780,0.00071911,63883.0,63882.0,1.72434901]
[1724678135979,0.00071911,63883.0,63882.0,1.77129488]
[1724678136303,0.00071911,63883.0,63882.0,1.77729488]
[1724678136514,0.00071911,63883.0,63882.0,1.79567197]
[1724678136677,0.00071911,63883.0,63882.0,1.77120497]
[1724678136878,0.00071911,63883.0,63882.0,1.78520497]
[1724678137079,0.00071911,63883.0,63882.0,1.77120497]
[1724678137280,0.00171911,63883.0,63882.0,1.78520497]
[1724678137480,0.00171911,63883.0,63882.0,1.73834901]
[1724678137986,0.00171911,63883.0,63882.0,1.7501039]
[1724678138187,0.00171911,63883.0,63882.0,1.7631673]
[1724678138785,0.00071911,63883.0,63882.0,1.7491673]
[1724678138991,0.00071911,63883.0,63882.0,1.7631673]
[1724678139202,0.00171911,63883.0,63882.0,1.7771673]
[1724678139608,0.00171911,63883.0,63882.0,1.7631673]
[1724678140006,0.00171911,63883.0,63882.0,1.7771673]
[1724678140239,0.00171911,63883.0,63882.0,1.77773355]
[1724678140438,0.00171911,63883.0,63882.0,2.09081055]
[1724678140635,0.00171911,63883.0,63882.0,2.11431962]
[1724678141220,0.00171911,63883.0,63882.0,2.11431872]
[1724678144657,0.00171911,63883.0,63882.0,2.10199699]
[1724678144857,0.00171911,63883.0,63882.0,1.80067378]
[1724678145035,0.00171911,63883.0,63882.0,1.7771662]
[1724678145394,0.00171911,63883.0,63882.0,1.4410892]
[1724678146813,0.00171911,63883.0,63882.0,1.4640892]
[1724678148291,0.00171911,63883.0,63882.0,1.45233541]
[1724678148486,0.00171911,63883.0,63882.0,1.46408638]
[1724678148738,0.00171911,63883.0,63882.0,1.46408641]
[1724678149515,0.00171911,63883.0,63882.0,1.77716341]
[1724678151500,0.00171911,63883.0,63882.0,1.46408641]
[1724678151703,0.00171911,63883.0,63882.0,1.36997201]
[1724678151851,0.00171911,63883.0,63882.0,1.38172264]
[1724678152935,0.00171911,63883.0,63882.0,1.30377201]
[1724678154081,0.00171911,63883.0,63882.0,1.38482388]
[1724678154611,0.00171911,63883.0,63882.0,1.76000088]
[1724678154811,0.00171911,63883.0,63882.0,1.44692388]
[1724678155018,0.00171911,63883.0,63882.0,1.43517201]
[1724678155263,0.00171911,63883.0,63882.0,1.44692564]
[1724678155674,0.00171911,63883.0,63882.0,1.31552564]
[1724678155882,0.00171911,63883.0,63882.0,1.30377201]
[1724678156088,0.00215286,63883.0,63882.0,0.811517]
[1724678156514,0.01259344,63883.0,63882.0,0.028825]
[1724678156725,0.15709344,63883.0,63882.0,0.185363]
[1724678156924,0.15709344,63883.0,63882.0,0.028825]
[1724678156925,0.14665286,63883.0,63882.0,0.028825]
[1724678157146,0.31362903,63883.0,63882.0,0.028825]
[1724678157323,0.62670103,63883.0,63882.0,0.028825]
[1724678157525,0.93977303,63883.0,63882.0,0.028825]
[1724678158794,0.62570103,63883.0,63882.0,0.000825]
[1724678158995,0.15609303,63883.0,63882.0,0.000825]
[1724678159245,0.15709303,63883.0,63882.0,0.028825]
[1724678159418,0.09359303,63883.0,63882.0,0.028825]
[1724678159620,0.09359303,63883.0,63882.0,0.051825]
[1724678164548,0.94138674,63883.0,63882.0,0.028825]
[1724678164750,0.93747303,63883.0,63882.0,0.028825]
[1724678165122,1.25054503,63883.0,63882.0,0.028825]
[1724678165733,1.72179504,63883.0,63882.0,0.028825]
[1724678166718,1.72079504,63883.0,63882.0,0.014825]
[1724678167265,1.72979504,63883.0,63882.0,0.001825]
[1724678167672,1.72979504,63883.0,63882.0,0.002825]
[1724678168307,1.70979504,63883.0,63882.0,0.002825]
[1724678168717,1.70170255,63883.0,63882.0,0.001825]
[1724678168924,1.70170255,63883.0,63882.0,0.000825]
[1724678169133,1.71170255,63883.0,63882.0,0.001825]
[1724678169544,1.71170255,63883.0,63882.0,0.000825]
[1724678169745,1.70170255,63883.0,63882.0,0.000825]
[1724678169958,1.70970255,63883.0,63882.0,0.001825]
[1724678170293,1.70970255,63883.0,63882.0,0.002825]
[1724678170560,1.70170255,63883.0,63882.0,0.000825]
[1724678171007,1.38763055,63883.0,63882.0,0.000825]
[1724678171177,1.38663055,63883.0,63882.0,0.000825]
[1724678171798,1.39563055,63883.0,63882.0,0.001825]
[1724678172444,1.38663055,63883.0,63882.0,0.000825]
[1724678172644,1.39463055,63883.0,63882.0,0.001825]
[1724678173183,0.60430854,63883.0,63882.0,0.000825]
[1724678173553,0.61030854,63883.0,63882.0,0.001825]
[1724678174427,0.92338054,63883.0,63882.0,0.001825]
[1724678174830,0.92338054,63883.0,63882.0,0.000825]
[1724678174831,0.91738054,63883.0,63882.0,0.000825]
[1724678175525,0.92038054,63883.0,63882.0,0.000825]
[1724678175723,0.92038054,63883.0,63882.0,0.001825]
[1724678177490,0.79702768,63883.0,63882.0,0.001825]
[1724678177705,0.87442768,63883.0,63882.0,0.001825]
[1724678182030,0.87941969,63883.0,63882.0,0.001825]
[1724678184876,0.94281969,63883.0,63882.0,0.001825]
[1724678191083,0.48894769,63883.0,63882.0,0.001825]
[1724678191363,0.01933969,63883.0,63882.0,0.01891487]
[1724678191575,0.17587569,63883.0,63882.0,0.04191487]
[1724678191991,0.48894769,63883.0,63882.0,0.04191487]
[1724678193184,0.01933969,63883.0,63882.0,0.04191487]
[1724678193392,0.01933969,63883.0,63882.0,0.51152987]
[1724678197419,0.01933969,63883.0,63882.0,0.49444]
[1724678197624,0.63796147,63883.0,63882.0,0.01891451]
[1724678197845,0.95103347,63883.0,63882.0,0.01891463]
[1724678199437,1.26410547,63883.0,63882.0,0.01891463]
[1724678199873,1.26410547,63883.0,63882.0,0.001825]
[1724678201581,1.3109533,63883.0,63882.0,0.001825]
[1724678202199,1.46713131,63883.0,63882.0,0.001825]
[1724678202401,1.3109533,63883.0,63882.0,0.001825]
[1724678202608,1.26410547,63883.0,63882.0,0.01891596]
[1724678202802,0.95103347,63883.0,63882.0,0.01891596]
[1724678203013,0.94711969,63883.0,63882.0,0.01891596]
[1724678203689,0.94711969,63883.0,63882.0,0.04191596]
[1724678205029,0.57194769,63883.0,63882.0,0.04191596]
[1724678206471,0.01933969,63883.0,63882.0,0.19845396]
[1724678206745,0.01933969,63883.0,63882.0,0.04191596]
[1724678207272,0.01933969,63883.0,63882.0,0.0419138]
[1724678210333,0.01933969,63883.0,63882.0,0.024825]
[1724678210544,0.01933969,63883.0,63882.0,0.0419138]
[1724678210939,1.09961132,63883.0,63882.0,0.0189138]
[1724678211156,1.09961132,63883.0,63882.0,0.001825]
[1724678211157,1.45959915,63883.0,63882.0,0.001825]
[1724678211352,1.41268332,63883.0,63882.0,0.001825]
[1724678211604,1.50651498,63883.0,63882.0,0.001825]
[1724678212201,1.41268332,63883.0,63882.0,0.001825]
[1724678213717,1.72775532,63883.0,63882.0,0.001825]
[1724678213919,1.92167074,63883.0,63882.0,0.001825]
[1724678214283,1.82775532,63883.0,63882.0,0.001825]
[1724678215303,2.14082732,63883.0,63882.0,0.001825]
[1724678215507,1.85228475,63883.0,63882.0,0.001825]
[1724678215921,1.84737113,63883.0,63882.0,0.001825]
[1724678216125,1.84837113,63883.0,63882.0,0.001825]
[1724678217230,2.04182722,63883.0,63882.0,0.001825]
[1724678218320,2.01729779,63883.0,63882.0,0.001825]
[1724678218515,1.8238417,63883.0,63882.0,0.001825]
[1724678221274,2.01967946,63883.0,63882.0,0.001825]
[1724678224338,2.33275146,63883.0,63882.0,0.001825]
[1724678224573,2.49775146,63883.0,63882.0,0.001825]
[1724678224803,2.52228155,63883.0,63882.0,0.001825]
[1724678225063,2.54817954,63883.0,63882.0,0.001825]
[1724678225557,2.54817954,63883.0,63882.0,0.000825]
[1724678225774,2.54517954,63883.0,63882.0,0.001825]
[1724678225977,1.970728,63878.0,63877.0,0.000825]
[1724678226186,2.48824377,63878.0,63877.0,0.000825]
[1724678226401,2.17514777,63878.0,63877.0,0.000825]
[1724678226602,1.99137753,63878.0,63877.0,0.000825]
[1724678226804,1.82637753,63878.0,63877.0,0.000825]
[1724678227041,1.99137753,63878.0,63877.0,0.000825]
[1724678227438,2.30447353,63878.0,63877.0,0.000825]
[1724678227656,1.99137753,63878.0,63877.0,0.000825]
[1724678227864,1.99637753,63878.0,63877.0,0.000825]
[1724678229151,2.15250921,63878.0,63877.0,0.000825]
[1724678229751,2.46560521,63878.0,63877.0,0.000825]
[1724678231064,1.99637753,63878.0,63877.0,0.000825]
[1724678231808,2.13797697,63878.0,63877.0,0.000825]
[1724678232434,2.02091006,63878.0,63877.0,0.000825]
[1724678233208,2.13797697,63878.0,63877.0,0.000825]
[1724678233413,2.02091006,63878.0,63877.0,0.000825]
[1724678234528,2.08998896,63878.0,63877.0,0.000825]
[1724678234934,2.26957612,63878.0,63877.0,0.000825]
[1724678235517,2.15250921,63878.0,63877.0,0.000825]
[1724678237561,1.99637753,63878.0,63877.0,0.000825]
[1724678237914,2.0209107,63878.0,63877.0,0.000825]
[1724678238340,2.13788324,63878.0,63877.0,0.000825]
[1724678238586,2.45097924,63878.0,63877.0,0.000825]
[1724678238766,2.0209107,63878.0,63877.0,0.000825]
[1724678239163,2.13788324,63878.0,63877.0,0.000825]
[1724678239376,2.0209107,63878.0,63877.0,0.000825]
[1724678239818,2.3340067,63878.0,63877.0,0.000825]
[1724678240028,2.0209107,63878.0,63877.0,0.000825]
[1724678240678,2.11334054,63878.0,63877.0,0.000825]
[1724678241281,2.42643654,63878.0,63877.0,0.000825]
[1724678242302,2.11334054,63878.0,63877.0,0.000825]
[1724678242848,2.42643654,63878.0,63877.0,0.000825]
[1724678243032,2.11334054,63878.0,63877.0,0.000825]
[1724678243253,1.99637753,63878.0,63877.0,0.000825]